bitfinex/quotes_SOLUSD_20220228
["timestamp","ask_amount","ask_price","bid_price","bid_amount"]
[1646061483818,12.65,96.58,96.401,2.22]
[1646061484016,77.1626,96.608,96.382,49.45733973]
[1646061484215,2.74678921,96.596,96.383,111.54678921]
[1646061484418,158.15,96.67,96.384,7.63958996]
[1646061484615,158.15,96.69,96.421,2.22]
[1646061484816,72.2815,96.689,96.43,12.65]
[1646061485020,25.35366036,96.666,96.442,50.16579875]
[1646061485221,12.65,96.62,96.442,50.16579875]
[1646061485422,12.65,96.62,96.338,1.61495404]
[1646061485423,12.65,96.62,96.399,2.74678921]
[1646061485622,12.65,96.62,96.41,12.65]
[1646061485821,12.65,96.62,96.42,12.65]
[1646061486021,12.65,96.62,96.41,12.65]
[1646061486221,2.74678921,96.619,96.4,12.65]
[1646061486823,28.10044957,96.619,96.3,158.15]
[1646061487025,158.15,96.57,96.333,15.8284]
[1646061487224,170.8,96.56,96.333,15.8284]
[1646061487421,158.15,96.54,96.313,5.41532345]
[1646061487626,158.15,96.52,96.284,15.3015]
[1646061487823,12.65,96.51,96.314,59.2423572]
[1646061488024,12.65,96.5,96.314,59.2423572]
[1646061488825,12.65,96.5,96.314,58.7423572]
[1646061489424,158.15,96.51,96.314,58.7423572]
[1646061489627,2.74678921,96.499,96.314,58.7423572]
[1646061490027,12.65,96.49,96.314,58.7423572]
[1646061490227,12.65,96.48,96.314,58.7423572]
[1646061490430,12.65,96.47,96.26,12.65]
[1646061490627,12.65,96.46,96.259,15.2291]
[1646061490829,12.65,96.45,96.259,15.2291]
[1646061491027,73.5939,96.489,96.227,27.95743366]
[1646061491028,12.65,96.44,96.258,15.5488]
[1646061491235,12.65,96.44,96.171,7.0]
[1646061491236,12.65,96.44,96.067,112.6]
[1646061491428,0.6,96.422,96.117,15.8733]
[1646061491626,158.15,96.35,96.173,19.28394592]
[1646061491826,3.08047561,96.349,96.189,10.85168577]
[1646061492026,2.28086108,96.339,96.135,16.42014019]
[1646061492230,12.65,96.33,96.117,5.42491282]
[1646061492448,12.65,96.32,96.124,58.16117999]
[1646061492646,158.15,96.31,96.133,10.86067725]
[1646061492846,158.15,96.29,96.124,58.16117999]
[1646061493047,2.83557534,96.289,96.124,58.16117999]
[1646061493247,170.8,96.28,96.124,58.16117999]
[1646061493447,2.63526236,96.279,96.124,57.66117999]
[1646061493651,0.6,96.372,96.124,57.66117999]
[1646061493652,0.43404336,96.306,96.124,57.66117999]
[1646061494050,34.34966036,96.305,96.125,2.74678921]
[1646061494256,2.56324516,96.304,96.124,57.66117999]
[1646061494550,2.26631538,96.289,95.99,28.2059]
[1646061494753,0.6,96.272,95.99,15.5559]
[1646061495052,12.65,96.26,96.033,10.86727834]
[1646061495250,0.6,96.251,95.984,5.4313117]
[1646061495450,3.09607451,96.259,95.938,15.5382]
[1646061495451,0.6,96.231,96.038,46.71721969]
[1646061495757,12.65,96.22,96.038,46.71721969]
[1646061495951,2.39928839,96.219,95.971,1.77]
[1646061496151,0.6,96.181,95.945,10.87473162]
[1646061496353,12.65,96.17,95.95,10.87646098]
[1646061496570,2.92590548,96.169,95.95,10.87646098]
[1646061496953,2.92590548,96.169,95.952,53.70487834]
[1646061497154,19.4451571,96.168,95.952,53.70487834]
[1646061497552,3.0546688,96.167,95.952,53.70487834]
[1646061497756,4.19440083,96.167,95.952,53.70487834]
[1646061497952,1.02811266,96.166,95.952,53.70487834]
[1646061498152,4.53524474,96.166,95.953,2.74678921]
[1646061498351,3.07308872,96.166,95.953,2.74678921]
[1646061498552,30.29950251,96.166,95.953,2.74678921]
[1646061498753,1.46215602,96.165,95.953,2.74678921]
[1646061498955,2.33952308,96.165,95.953,2.74678921]
[1646061499155,28.65332291,96.164,95.952,53.70487834]
[1646061499356,170.8,96.15,95.952,53.70487834]
[1646061499556,0.6,96.111,95.952,53.70487834]
[1646061499755,158.15,96.09,95.89,10.88360764]
[1646061499957,158.15,96.09,95.872,16.004]
[1646061499958,2.75403121,96.089,95.872,16.004]
[1646061500157,5.50082042,96.089,95.872,16.004]
[1646061500355,2.49349309,96.088,95.836,65.23]
[1646061500555,2.49721881,96.079,95.847,10.0]
[1646061500758,2.49721881,96.079,95.848,44.70314568]
[1646061501158,17.39241125,96.078,95.848,44.70314568]
[1646061501358,2.31321566,96.077,95.848,44.70314568]
[1646061501958,12.65,96.07,95.848,44.70314568]
[1646061502157,2.76797819,96.069,95.848,44.70314568]
[1646061502357,2.76797819,96.069,95.851,1.77]
[1646061502560,3.7792139,96.068,95.849,6.0]
[1646061502958,30.24839341,96.069,95.849,7.85433179]
[1646061503159,1.03242469,96.067,95.85,2.74678921]
[1646061503359,12.65,96.06,95.85,111.54678921]
[1646061503657,2.49709942,96.059,95.85,111.54678921]
[1646061503857,2.49709942,96.059,95.849,6.0]
[1646061503858,2.49709942,96.059,95.853,108.8]
[1646061504060,2.49709942,96.059,95.854,1.38309848]
[1646061504259,2.49709942,96.059,95.854,4.12988769]
[1646061504460,12.65,96.1,95.854,4.12988769]
[1646061504666,2.59843359,96.099,95.87,13.6587164]
[1646061504865,23.2163,96.108,95.901,0.31539877]
[1646061505063,2.62022314,96.209,96.001,1.77]
[1646061505260,2.54170901,96.229,96.002,47.38197346]
[1646061505462,27.31173777,96.208,96.002,54.20197346]
[1646061505663,12.65,96.2,96.002,54.20197346]
[1646061505863,3.10000149,96.199,96.002,54.20197346]
[1646061506473,3.10000149,96.199,96.002,47.38197346]
[1646061506863,2.81177678,96.197,96.002,47.38197346]
[1646061507263,0.6,96.172,96.002,47.38197346]
[1646061507568,12.65,96.16,96.002,47.38197346]
[1646061507763,25.98198434,96.171,96.002,47.38197346]
[1646061507963,25.98198434,96.196,96.002,47.38197346]
[1646061508162,2.74678921,96.159,96.002,47.38197346]
[1646061508364,12.65,96.18,96.002,47.38197346]
[1646061508564,2.8003804,96.179,96.003,4.162]
[1646061508765,2.55622481,96.17,96.003,4.162]
[1646061508965,12.65,96.16,96.002,47.38197346]
[1646061509165,2.79324065,96.159,96.002,47.38197346]
[1646061509465,28.77522499,96.159,96.002,47.38197346]
[1646061509665,2.65372985,96.158,96.003,4.163]
[1646061510068,25.98198434,96.157,96.002,47.38197346]
[1646061510266,2.86882776,96.156,96.002,47.38197346]
[1646061510468,2.86882776,96.156,96.103,7.405e-05]
[1646061510668,25.98198434,96.155,96.103,7.405e-05]
[1646061510867,2.51499721,96.154,96.103,7.405e-05]
[1646061511267,2.49564044,96.179,96.103,7.405e-05]
[1646061511468,2.28177166,96.192,96.103,7.405e-05]
[1646061511670,2.82,96.272,96.103,7.405e-05]
[1646061511671,2.94323514,96.228,96.103,7.405e-05]
[1646061511867,2.25101455,96.26,96.103,7.405e-05]
[1646061512270,2.25101455,96.26,96.104,2.74678921]
[1646061512574,2.25101455,96.26,96.105,57.87141814]
[1646061513168,24.5393,96.261,96.106,4.56736453]
[1646061513369,22.15422484,96.261,96.106,4.56736453]
[1646061513569,22.15422484,96.261,96.107,2.74678921]
[1646061513769,1.96463833,96.328,96.107,2.74678921]
[1646061513971,2.74678921,96.296,96.107,1.76981787]
[1646061514172,2.16953623,96.296,96.103,7.405e-05]
[1646061514370,137.79580332,96.295,96.01,1.76614602]
[1646061514572,0.6,96.222,95.983,15.6672]
[1646061514771,0.6,96.242,95.983,15.6672]
[1646061514972,3.01,96.232,95.872,1.97207369]
[1646061515185,2.55697514,96.209,95.977,43.23829024]
[1646061515381,0.6,96.212,95.877,108.8]
[1646061515575,12.65,96.2,95.978,4.162]
[1646061515776,0.6,96.182,95.978,4.162]
[1646061515972,2.14448662,96.207,95.897,15.9959]
[1646061516174,61.70522429,96.199,95.898,4.164]
[1646061516373,32.01221937,96.181,95.898,5.95337498]
[1646061516574,2.41052009,96.18,95.898,5.95337498]
[1646061516778,12.65,96.17,95.898,21.21567498]
[1646061516981,1.95863394,96.179,95.899,1.91263998]
[1646061517176,35.76242667,96.179,95.9,20.164]
[1646061517479,2.17884866,96.168,95.9,20.164]
[1646061517679,2.17884866,96.168,95.901,2.17068372]
[1646061517877,2.02131988,96.159,95.902,4.165]
[1646061518082,12.65,96.15,95.902,4.165]
[1646061518276,1.96929532,96.149,95.902,4.165]
[1646061518697,0.6,96.132,95.902,4.165]
[1646061518882,2.4250108,96.147,95.892,4.165]
[1646061519180,56.93605028,96.131,95.925,4.07927]
[1646061519380,12.65,96.12,95.926,4.165]
[1646061519580,0.6,96.092,95.945,0.00842]
[1646061519782,12.65,96.08,95.946,0.005]
[1646061519981,2.37572359,96.079,95.945,0.00842]
[1646061520184,0.6,96.072,95.832,4.08323]
[1646061520382,43.62645535,96.078,95.832,4.08323]
[1646061520587,0.6,96.072,95.832,4.08323]
[1646061520782,0.6,96.041,95.832,4.08323]
[1646061520982,0.6,96.051,95.833,4.169]
[1646061521181,0.6,95.991,95.833,8.25219]
[1646061521382,223.82792774,96.04,95.833,8.25219]
[1646061521383,12.65,95.98,95.833,8.25219]
[1646061521681,2.39155097,95.979,95.833,8.25219]
[1646061521883,39.02252438,95.979,95.833,8.25219]
[1646061522181,27.09175172,95.978,95.833,8.25219]
[1646061522381,12.65,95.97,95.833,8.25219]
[1646061522581,2.31258026,95.969,95.833,8.25219]
[1646061522784,2.31258026,95.969,95.834,6.0]
[1646061522980,2.31258026,95.969,95.835,8.2531]
[1646061523381,2.41,96.041,95.835,8.2531]
[1646061523582,2.41,96.031,95.835,8.2531]
[1646061523781,2.41,96.021,95.835,8.2531]
[1646061523983,2.58230553,96.037,95.835,8.2531]
[1646061524184,2.41,96.031,95.836,29.3167823]
[1646061524383,0.6,96.062,95.834,6.0]
[1646061524384,15.42946483,96.059,95.852,55.44758539]
[1646061524583,13.97553171,96.062,95.87,48.34394175]
[1646061524784,2.74678921,96.038,95.872,4.08152]
[1646061524982,2.74678921,96.038,95.873,4.168]
[1646061525184,2.74678921,96.038,95.875,4.0814]
[1646061525385,2.09673158,96.038,95.875,4.0814]
[1646061525585,2.41,96.072,95.875,4.0814]
[1646061525783,23.0843,96.079,95.875,4.0814]
[1646061525784,2.41,96.052,95.876,4.167]
[1646061526083,2.74678921,96.058,95.891,44.60785062]
[1646061526282,12.65,96.05,95.907,4.08003]
[1646061526487,2.48472618,96.078,95.908,49.09332372]
[1646061526684,2.48472618,96.078,95.925,4.07927]
[1646061526885,2.48472618,96.078,95.926,57.20097844]
[1646061527087,2.48472618,96.078,95.938,4.07872]
[1646061527383,2.48472618,96.078,95.926,57.20097844]
[1646061527384,0.6,96.072,95.926,0.00097844]
[1646061527587,23.0843,96.079,95.835,2.31335162]
[1646061527588,12.65,96.06,95.835,2.31335162]
[1646061527785,12.65,96.05,95.838,10.88686602]
[1646061527988,12.65,96.04,95.839,4.08293]
[1646061528185,12.65,96.03,95.84,4.169]
[1646061528385,2.13818893,96.029,95.842,4.0828]
[1646061528584,2.13818893,96.029,95.843,52.8595996]
[1646061528784,2.13818893,96.029,95.853,4.08233]
[1646061528985,8.60017636,96.028,95.854,4.168]
[1646061529185,18.77979883,96.028,95.855,4.08225]
[1646061529386,18.77979883,96.028,95.856,4.168]
[1646061529587,2.63999719,96.027,95.856,4.168]
[1646061529788,2.63999719,96.027,95.858,58.76260399]
[1646061529994,2.63999719,96.027,95.859,4.168]
[1646061530490,5.23819704,96.026,95.86,4.08203]
[1646061530687,2.48765898,96.025,95.861,4.168]
[1646061531287,1.07781865,96.024,95.862,4.08195]
[1646061531489,12.65,96.01,95.863,4.168]
[1646061531687,2.44049095,96.009,95.863,4.168]
[1646061532089,2.44049095,96.009,95.863,1.6207858]
[1646061532492,2.44049095,96.009,95.864,6.0]
[1646061532690,2.44049095,96.009,95.865,4.168]
[1646061533091,2.14887576,96.028,95.865,4.168]
[1646061533291,1.96099297,96.036,95.866,4.08178]
[1646061533590,2.47833783,96.061,95.87,12.65]
[1646061533789,2.3932829,96.061,95.872,4.08152]
[1646061533989,25.08437951,96.079,95.874,108.8]
[1646061534191,2.13263263,96.078,95.89,4.08076]
[1646061534389,23.0843,96.079,95.9,12.65]
[1646061534589,23.0843,96.079,95.914,4.07974]
[1646061534790,2.63034195,96.188,95.92,12.65]
[1646061534990,2.63034195,96.188,95.938,4.07872]
[1646061535189,2.63034195,96.188,95.95,12.65]
[1646061535389,2.67151933,96.211,95.969,57.24496602]
[1646061535589,2.58935677,96.254,95.987,4.07663]
[1646061535792,2.58935677,96.254,96.0,12.65]
[1646061535991,2.58935677,96.254,95.988,4.16]
[1646061535992,0.6,96.122,95.988,0.00531028]
[1646061536190,0.6,96.072,95.931,15.9766]
[1646061536491,12.65,96.06,95.765,72.8949]
[1646061536690,12.65,96.05,95.766,1.73292595]
[1646061536892,3.01,96.031,95.771,10.89632672]
[1646061537089,3.01,96.011,95.771,10.89632672]
[1646061537291,12.65,96.0,95.791,53.92050422]
[1646061537492,114.16658395,96.01,95.791,53.92050422]
[1646061537690,12.65,95.99,95.791,53.92050422]
[1646061537891,12.65,95.98,95.792,4.171]
[1646061538092,12.65,95.97,95.792,4.171]
[1646061538392,2.24822649,95.959,95.792,4.171]
[1646061538590,12.65,95.95,95.792,4.171]
[1646061538791,12.65,95.94,95.792,4.171]
[1646061538991,12.65,95.93,95.792,4.171]
[1646061539192,12.65,95.92,95.792,4.171]
[1646061539391,12.65,95.91,95.792,4.171]
[1646061539591,12.65,95.9,95.792,4.171]
[1646061539791,12.65,95.89,95.79,4.173]
[1646061539992,2.00405615,95.889,95.701,10.90621846]
[1646061540393,16.41911407,95.889,95.663,5.45283984]
[1646061540593,2.00667358,95.888,95.696,44.70067591]
[1646061540893,2.00667358,95.888,95.697,5.99691229]
[1646061541092,2.00667358,95.888,95.697,4.175]
[1646061541292,2.00667358,95.888,95.697,6.34937911]
[1646061541492,2.00667358,95.888,95.698,4.08895]
[1646061541692,2.00667358,95.888,95.696,44.70067591]
[1646061541693,2.00667358,95.888,95.699,4.175]
[1646061541895,14.97958074,95.887,95.699,4.175]
[1646061542092,2.47883813,95.886,95.697,4.175]
[1646061542493,14.97958074,95.885,95.697,4.175]
[1646061542691,2.29446469,95.884,95.697,4.175]
[1646061542892,12.65,95.87,95.697,4.175]
[1646061543292,21.93519951,95.869,95.697,4.175]
[1646061543494,48.98331048,95.869,95.697,4.175]
[1646061543695,2.41,95.861,95.697,4.175]
[1646061543892,12.65,95.85,95.697,4.175]
[1646061544092,12.65,95.84,95.697,4.175]
[1646061544294,3.01,95.831,95.697,0.005]
[1646061544494,12.65,95.82,95.697,4.176]
[1646061544693,2.03545422,95.819,95.611,4.176]
[1646061544894,48.16963981,95.819,95.611,4.176]
[1646061545194,74.99863463,95.818,95.696,0.006]
[1646061545494,2.61595336,95.809,95.61,1.33]
[1646061545694,12.65,95.8,95.611,58.17805923]
[1646061545894,158.15,95.76,95.611,58.17805923]
[1646061546095,170.8,95.75,95.611,58.17805923]
[1646061546295,2.21079892,95.749,95.612,4.18]
[1646061546497,12.65,95.74,95.612,4.18]
[1646061546695,60.28558062,95.749,95.612,4.18]
[1646061546696,2.54607299,95.739,95.612,4.18]
[1646061546895,2.41,95.741,95.612,4.18]
[1646061547095,2.37816167,95.747,95.612,4.18]
[1646061547295,14.93558874,95.74,95.612,4.18]
[1646061547496,2.18893906,95.729,95.612,4.18]
[1646061547700,14.82118874,95.77,95.613,6.0]
[1646061547897,14.82118874,95.77,95.614,4.18]
[1646061548098,1.79766701,95.816,95.614,4.18]
[1646061548298,12.65,95.81,95.614,4.18]
[1646061548500,1.66296856,95.809,95.614,4.18]
[1646061548918,15.84431386,95.809,95.614,4.18]
[1646061549117,1.77522259,95.807,95.614,4.18]
[1646061549518,44.20125627,95.806,95.614,4.18]
[1646061549719,1.62186427,95.805,95.614,4.18]
[1646061549922,78.10591381,95.805,95.613,6.0]
[1646061550217,170.8,95.81,95.613,6.0]
[1646061550218,15.63259316,95.804,95.613,6.0]
[1646061550518,1.7287985,95.789,95.613,6.0]
[1646061550718,12.65,95.78,95.614,4.179]
[1646061550919,12.65,95.77,95.614,4.179]
[1646061551120,13.8017453,95.788,95.614,4.179]
[1646061551322,23.068,95.815,95.614,4.179]
[1646061551323,13.8017453,95.78,95.614,4.179]
[1646061551525,1.64386359,95.779,95.614,4.179]
[1646061551720,3.01,95.741,95.612,4.179]
[1646061551918,12.65,95.73,95.612,4.179]
[1646061552119,1.74119678,95.729,95.612,4.179]
[1646061552719,1.47886673,95.754,95.612,4.179]
[1646061552918,13.8017453,95.729,95.612,4.179]
[1646061553121,12.65,95.72,95.612,4.179]
[1646061553319,1.69155411,95.719,95.612,4.179]
[1646061553522,15.49329942,95.719,95.612,4.179]
[1646061553722,12.65,95.72,95.612,4.179]
[1646061553923,12.65,95.72,95.613,6.0]
[1646061554123,0.6,95.811,95.614,4.181]
[1646061554323,12.65,95.79,95.614,4.181]
[1646061554523,1.71494536,95.789,95.613,8.74678921]
[1646061554924,1.71494536,95.789,95.614,4.179]
[1646061555122,12.65,95.79,95.614,4.179]
[1646061555323,1.42968849,95.789,95.614,6.42578921]
[1646061555624,76.8527,95.797,95.615,2.74678921]
[1646061555823,1.71556062,95.796,95.615,2.74678921]
[1646061556025,75.5522,95.814,95.616,4.179]
[1646061556223,1.74569956,95.813,95.616,4.179]
[1646061556429,1.74569956,95.813,95.617,2.74678921]
[1646061556624,1.74569956,95.813,95.618,4.179]
[1646061556826,189.199,95.884,95.618,4.179]
[1646061556827,30.29180014,95.85,95.631,46.99738133]
[1646061557025,30.29180014,95.85,95.632,8.26977]
[1646061557224,79.0367,95.884,95.632,10.78885854]
[1646061557424,79.0367,95.884,95.632,13.53564775]
[1646061557625,1.40781229,95.883,95.633,2.74678921]
[1646061557825,14.42227864,95.853,95.634,4.176]
[1646061558025,12.65,95.84,95.633,2.74678921]
[1646061558225,1.84874993,95.839,95.635,2.74678921]
[1646061558425,14.42227864,95.839,95.636,4.178]
[1646061558629,42.19773822,95.838,95.636,4.178]
[1646061558927,67.05750229,95.838,95.637,2.74678921]
[1646061559128,15.20227864,95.837,95.637,2.74678921]
[1646061559325,1.84977232,95.836,95.637,2.74678921]
[1646061559626,15.20227864,95.835,95.638,4.178]
[1646061559825,12.65,95.82,95.638,4.178]
[1646061560024,1.42989599,95.819,95.638,4.178]
[1646061560227,16.63217463,95.819,95.639,2.74678921]
[1646061560426,1.74818326,95.818,95.639,2.74678921]
[1646061561024,14.44940449,95.818,95.64,4.178]
[1646061561224,1.71167053,95.817,95.64,2.53231535]
[1646061561632,15.20227864,95.816,95.64,2.53231535]
[1646061561829,1.86619494,95.815,95.641,4.178]
[1646061562028,12.65,95.8,95.64,15.6975]
[1646061562228,1.62978218,95.799,95.641,2.86331021]
[1646061562427,1.62911235,95.809,95.641,2.86331021]
[1646061562629,12.65,95.8,95.641,2.86331021]
[1646061562928,1.44715422,95.799,95.641,18.30351021]
[1646061563127,1.44715422,95.799,95.641,18.18698921]
[1646061563327,1.44715422,95.799,95.642,2.29420648]
[1646061563627,12.65,95.8,95.642,2.29420648]
[1646061563827,12.65,95.8,95.643,2.74678921]
[1646061564028,1.37431679,95.799,95.643,2.74678921]
[1646061564230,1.37431679,95.799,95.643,5.18343556]
[1646061564428,1.37431679,95.799,95.643,2.43664635]
[1646061564632,12.65,95.8,95.643,2.43664635]
[1646061564829,1.85606977,95.799,95.643,2.43664635]
[1646061565029,1.54258208,95.799,95.644,2.35525895]
[1646061565231,12.65,95.84,95.644,2.35525895]
[1646061565431,1.54720779,95.839,95.644,5.10204816]
[1646061565629,1.54720779,95.839,95.646,50.29306019]
[1646061565829,12.65,95.84,95.647,4.09113]
[1646061566030,12.65,95.84,95.647,6.78534906]
[1646061566230,14.26273592,95.84,95.65,12.65]
[1646061566432,1.62713674,95.839,95.65,16.741]
[1646061566631,12.65,95.84,95.651,2.86423499]
[1646061566834,1.44059833,95.839,95.651,2.86423499]
[1646061567230,1.44059833,95.839,95.651,18.55273499]
[1646061567433,1.44059833,95.839,95.652,2.83559349]
[1646061567630,68.6951,95.851,95.652,2.83559349]
[1646061567830,1.61318912,95.85,95.652,2.83559349]
[1646061568031,14.26318912,95.85,95.652,18.60609349]
[1646061568236,1.40431571,95.849,95.653,2.61416765]
[1646061569235,1.40431571,95.849,95.653,18.12466765]
[1646061569437,1.40431571,95.849,95.654,2.34206966]
[1646061569835,12.65,95.85,95.655,4.09078]
[1646061570036,2.41,95.951,95.655,4.09078]
[1646061570037,12.65,95.9,95.67,12.65]
[1646061570237,1.56292865,95.899,95.672,4.09006]
[1646061570436,1.79369805,95.868,95.672,7.16686791]
[1646061570838,1.79369805,95.868,95.672,3.07680791]
[1646061571038,1.79369805,95.868,95.672,19.09950791]
[1646061571240,1.79369805,95.868,95.673,2.8327415]
[1646061571839,1.57701527,95.879,95.674,4.08997]
[1646061572041,1.7751194,95.868,95.674,4.08997]
[1646061572244,1.7751194,95.868,95.673,18.4104415]
[1646061572544,26.28631097,95.867,95.674,2.85158762]
[1646061572943,1.54293263,95.866,95.674,2.85158762]
[1646061573143,12.65,95.87,95.674,2.85158762]
[1646061573144,12.65,95.87,95.674,18.19608762]
[1646061573344,1.40472724,95.915,95.676,2.2911026]
[1646061573549,12.65,95.91,95.69,12.65]
[1646061573843,1.50159139,95.909,95.691,47.65953884]
[1646061574043,1.50159139,95.909,95.692,2.66306816]
[1646061574245,12.65,95.89,95.692,6.75226816]
[1646061574443,1.77141208,95.889,95.692,6.75226816]
[1646061574844,1.38891007,95.868,95.692,2.66306816]
[1646061575043,12.65,95.86,95.692,2.66306816]
[1646061575245,1.5198255,95.859,95.692,2.66306816]
[1646061575444,2.74678921,95.867,95.692,18.51566816]
[1646061575645,1.58914714,95.868,95.693,2.39328095]
[1646061575943,1.47903476,95.859,95.692,15.8526]
[1646061576543,15.2065934,95.859,95.692,15.8526]
[1646061576744,13.72755864,95.859,95.693,2.91634474]
[1646061576945,1.72504469,95.858,95.693,2.91634474]
[1646061577146,1.72504469,95.858,95.694,4.176]
[1646061577546,2.74678921,95.857,95.692,15.8526]
[1646061577945,1.72504469,95.858,95.692,15.8526]
[1646061578846,2.74678921,95.857,95.692,15.8526]
[1646061579045,13.3254253,95.858,95.692,15.8526]
[1646061579246,1.39992217,95.857,95.693,3.05731519]
[1646061579446,1.39992217,95.857,95.694,4.176]
[1646061579846,1.39992217,95.857,95.692,15.8526]
[1646061580048,1.39992217,95.857,95.693,2.25104004]
[1646061580249,15.99178123,95.856,95.694,4.176]
[1646061580448,1.65891338,95.855,95.694,4.176]
[1646061580648,1.7161511,95.868,95.694,4.176]
[1646061581052,1.87117305,95.859,95.694,4.176]
[1646061581448,1.87117305,95.859,95.693,2.65144548]
[1646061581648,1.87117305,95.859,95.693,18.47264548]
[1646061581848,1.87117305,95.859,95.694,8.62785159]
[1646061582749,1.87117305,95.859,95.694,24.41135159]
[1646061583149,1.87117305,95.859,95.695,2.8282659]
[1646061583953,1.87117305,95.859,95.695,18.6194659]
[1646061584252,1.87117305,95.859,95.696,2.30701016]
[1646061584452,16.70182502,95.859,95.695,15.7912]
[1646061584652,1.8040435,95.858,95.695,15.7912]
[1646061584856,1.8040435,95.858,95.696,6.0]
[1646061585055,14.83065197,95.857,95.696,6.0]
[1646061585454,1.58177116,95.856,95.697,4.176]
[1646061585855,1.7927912,95.854,95.696,6.0]
[1646061586053,12.65,95.84,95.696,6.0]
[1646061586265,1.5486386,95.839,95.696,6.0]
[1646061586957,1.5486386,95.839,95.696,15.7568]
[1646061587457,1.5486386,95.839,95.697,108.8]
[1646061587755,1.48411892,95.838,95.697,108.8]
[1646061587955,1.48411892,95.838,95.699,108.8]
[1646061588756,1.48411892,95.838,95.7,2.28231088]
[1646061589556,1.72595316,95.866,95.7,2.28231088]
[1646061589756,12.65,95.88,95.7,2.28231088]
[1646061589977,1.57629112,95.868,95.7,2.28231088]
[1646061590176,1.48198769,95.876,95.7,6.37117088]
[1646061590377,1.78490972,95.896,95.702,3.10945171]
[1646061590579,1.83580958,95.915,95.706,65.23]
[1646061590777,1.83580958,95.915,95.71,118.42446574]
[1646061590978,1.83580958,95.915,95.713,108.8]
[1646061591177,1.83580958,95.915,95.716,65.23]
[1646061591379,1.83580958,95.915,95.729,108.3]
[1646061591576,1.83580958,95.915,95.736,65.23]
[1646061591776,15.43731864,95.914,95.747,108.3]
[1646061591978,12.65,95.91,95.759,108.3]
[1646061592280,12.65,95.91,95.717,4.08813]
[1646061592281,1.79072386,95.909,95.786,65.23]
[1646061592481,40.29922962,95.909,95.794,65.23]
[1646061592678,24.86191098,95.909,95.809,108.8]
[1646061592877,1.4336637,95.908,95.816,122.35509099]
[1646061593078,1.4336637,95.908,95.722,65.23]
[1646061593477,1.4336637,95.908,95.736,65.23]
[1646061593680,15.26745197,95.907,95.753,108.8]
[1646061593878,1.69045953,95.906,95.769,108.8]
[1646061594078,1.69045953,95.906,95.789,108.8]
[1646061594278,15.26745197,95.905,95.79,65.23]
[1646061594480,1.74385,95.904,95.79,65.23]
[1646061594678,12.65,95.9,95.808,65.23]
[1646061594879,1.6141024,95.899,95.812,114.1387575]
[1646061595480,16.88155437,95.899,95.812,114.1387575]
[1646061595678,1.78829873,95.898,95.812,114.1387575]
[1646061595880,1.78829873,95.898,95.818,65.23]
[1646061596280,1.78829873,95.898,95.766,15.5653]
[1646061596480,1.40778244,95.896,95.766,15.5653]
[1646061596881,10.60250124,95.895,95.766,15.5653]
[1646061597080,12.65,95.88,95.767,108.8]
[1646061597280,1.82926634,95.879,95.776,65.23]
[1646061597482,1.82926634,95.879,95.775,108.8]
[1646061597483,1.82926634,95.879,95.788,65.23]
[1646061597684,1.82926634,95.879,95.782,59.10189011]
[1646061597685,1.38733668,95.88,95.808,65.23]
[1646061597885,1.71388345,95.919,95.808,65.23]
[1646061598287,25.72802812,95.916,95.801,65.23]
[1646061598487,1.74011465,95.915,95.801,65.23]
[1646061599086,1.74011465,95.915,95.805,65.23]
[1646061599286,1.74011465,95.915,95.809,65.23]
[1646061600391,1.74011465,95.915,95.821,65.23]
[1646061600589,23.889,95.93,95.821,65.23]
[1646061600789,1.77808441,95.929,95.821,65.23]
[1646061601288,13.01099864,95.961,95.82,51.28421323]
[1646061601289,1.70217228,95.94,95.827,65.23]
[1646061601494,22.8888,95.948,95.833,65.23]
[1646061601691,22.8888,95.948,95.838,108.8]